lending/lending_fUSD_20250409
["ID","MTS","AMOUNT","RATE_DAILY","PERIOD"]
[357597037,1744224639022,-204.430681,0.00021,2]
[357597039,1744224639031,-204.430681,0.00021,2]
[357597041,1744224639041,-151.0,0.00021,2]
[357597043,1744224639050,-174.477373,0.00021,2]
[357597045,1744224639060,-177.38899,0.00021,2]
[357597047,1744224639069,-174.477373,0.00021,2]
[357597049,1744224639079,-151.0,0.00021,2]
[357597051,1744224639089,-151.0,0.00021,2]
[357597052,1744224639099,-151.0,0.00021,2]
[357597054,1744224639109,-151.0,0.00021,2]
[357597056,1744224639118,-151.0,0.00021,2]
[357597058,1744224639128,-151.0,0.00021,2]
[357597060,1744224639138,-151.0,0.00021,2]
[357597062,1744224639147,-151.0,0.00021,2]
[357597064,1744224639157,-202.376714,0.00021,2]
[357597066,1744224639167,-151.0,0.00021,2]
[357597068,1744224639177,-151.0,0.00021,2]
[357597070,1744224639187,-153.277693,0.00021,2]
[357597072,1744224639201,-912.748335,0.00021,2]
[357597074,1744224639211,-912.748335,0.00021,2]
[357597075,1744224639221,-151.0,0.00021,2]
[357597077,1744224639231,-151.0,0.00021,2]
[357597079,1744224639242,-318.909339,0.00021,2]
[357597081,1744224639251,-318.909339,0.00021,2]
[357597083,1744224639261,-154.717108,0.00021,2]
[357597085,1744224639271,-5949.479192,0.00021,2]
[357597087,1744224639280,-151.0,0.00021,2]
[357597089,1744224639290,-5949.479192,0.00021,2]
[357597091,1744224639299,-151.0,0.00021,2]
[357597093,1744224639308,-166.781901,0.00021,2]
[357597094,1744224639318,-166.781901,0.00021,2]
[357597096,1744224639328,-154.992556,0.00021,2]
[357597098,1744224639337,-151.0,0.00021,2]
[357597100,1744224639346,-369.31631,0.00021,2]
[357597102,1744224639355,-151.0,0.00021,2]
[357597104,1744224639365,-369.31631,0.00021,2]
[357597106,1744224639374,-264.362966,0.00021,2]
[357597108,1744224639384,-746.797042,0.00021,2]
[357597110,1744224639393,-746.797042,0.00021,2]
[357597112,1744224639402,-151.0,0.00021,2]
[357597114,1744224639411,-151.0,0.00021,2]
[357597115,1744224639420,-151.0,0.00021,2]
[357597117,1744224639429,-963.234939,0.00021,2]
[357597119,1744224639438,-963.234939,0.00021,2]
[357597121,1744224639449,-745.180852,0.00021,2]
[357597123,1744224639458,-745.180852,0.00021,2]
[357597125,1744224639467,-151.0,0.00021,2]
[357597127,1744224639477,-214.464694,0.00021,2]
[357597129,1744224639486,-151.0,0.00021,2]
[357597131,1744224639495,-214.464694,0.00021,2]
[357597133,1744224639505,-151.0,0.00021,2]
[357597135,1744224639514,-151.361839,0.00021,2]
[357597137,1744224639523,-151.0,0.00021,2]
[357597139,1744224639536,-151.361839,0.00021,2]
[357597140,1744224639545,-151.0,0.00021,2]
[357597142,1744224639555,-151.0,0.00021,2]
[357597144,1744224639564,-151.0,0.00021,2]
[357597146,1744224639573,-151.0,0.00021,2]
[357597148,1744224639583,-500.0,0.00021068,2]
[357597150,1744224639592,-166.66,0.00021099,2]
[357597152,1744224639601,-719.04747942,0.00021181,2]
[357597154,1744224639610,-2666.28,0.0002133,2]
[357597156,1744224639620,-223.38,0.00021548,2]
[357597158,1744224639629,-11860.15319382,0.00021579,2]
[357597160,1744224639638,-162.380719,0.00021727,2]
[357597162,1744224639647,-215.0738,0.00021727,2]
[357597164,1744224639656,-745.65223616,0.00021729,2]
[357597166,1744224639665,-166.66,0.00021874,2]
[357597168,1744224639674,-411.92,0.00021917,2]
[357597170,1744224639684,-2564.25,0.00021918,2]
[357597171,1744224639693,-256.15,0.00021918,2]
[357597173,1744224639704,-151.0,0.00021918,7]
[357597175,1744224639714,-151.0,0.00021918,7]
[357597177,1744224639723,-151.0,0.00021918,7]
[357597179,1744224639732,-209.430364,0.00021918,7]
[357597181,1744224639742,-209.430364,0.00021918,7]
[357597183,1744224639755,-166.66,0.0002205,2]
[357597185,1744224639765,-151.739543,0.00022122,7]
[357597187,1744224639775,-167.0,0.00022164,2]
[357597189,1744224639784,-166.68,0.00022195,2]
[357597191,1744224639795,-773.2413689,0.00022277,2]
[357597193,1744224639805,-158.18996,0.000223,28]
[357597194,1744224639815,-378.53578,0.00022456,7]
[357597196,1744224639825,-378.53578,0.00022456,7]
[357597198,1744224639835,-250.0,0.00022482,2]
[357597200,1744224639845,-151.0,0.00022562,7]
[357597202,1744224639854,-151.0,0.00022562,7]
[357597204,1744224639863,-151.0,0.00022562,7]
[357597206,1744224639873,-232.916259,0.00022562,7]
[357597208,1744224639882,-232.916259,0.00022562,7]
[357597210,1744224639892,-213.454841,0.00022562,7]
[357597212,1744224639902,-223.38,0.00022574,2]
[357597214,1744224639913,-801.85129955,0.00022825,2]
[357597215,1744224639923,-350.0,0.00023,2]
[357597232,1744224639933,-168.3888056,0.00023096,2]
[357597234,1744224640116,-223.0315306,0.00023096,2]
[357597236,1744224640126,-1000.0,0.00023135,2]
[357597238,1744224640136,-203.94841364,0.00023182,2]
[357597240,1744224640145,-11860.15319382,0.00023258,2]
[357597242,1744224640155,-411.92,0.00023287,2]
[357597244,1744224640165,-831.51979763,0.00023373,2]
[357597246,1744224640175,-151.0,0.00023456,7]
[357597249,1744224640186,-202.376714,0.00023456,7]
[357597251,1744224640196,-912.748335,0.00023456,7]
[357597253,1744224640209,-912.748335,0.00023456,7]
[357597255,1744224640219,-2666.28,0.00023594,2]
[357597257,1744224640229,-223.38,0.000236,2]
[357597258,1744224640238,-654.95429363,0.00023733,2]
[357597260,1744224640248,-500.0,0.0002383,2]
[357597262,1744224640258,-500.0,0.0002383,2]
[357597264,1744224640268,-500.0,0.0002383,2]
[357597266,1744224640278,-500.0,0.0002383,2]
[357597268,1744224640288,-573.01332507,0.0002383,2]
[357597270,1744224640297,-204.430681,0.0002383,7]
[357597272,1744224640306,-204.430681,0.0002383,7]
[357597274,1744224640316,-151.0,0.0002383,7]
[357597276,1744224640325,-151.0,0.0002383,7]
[357597278,1744224640334,-151.0,0.0002383,7]
[357597280,1744224640343,-151.0,0.0002383,7]
[357597282,1744224640353,-151.0,0.0002383,7]
[357597284,1744224640362,-963.234939,0.0002383,7]
[357597286,1744224640372,-963.234939,0.0002383,7]
[357597288,1744224640381,-745.180852,0.0002383,7]
[357597289,1744224640391,-745.180852,0.0002383,7]
[357597291,1744224640401,-214.464694,0.0002383,7]
[357597293,1744224640411,-214.464694,0.0002383,7]
[357597295,1744224640420,-151.361839,0.0002383,7]
[357597297,1744224640430,-151.361839,0.0002383,7]
[357597299,1744224640440,-151.0,0.0002383,7]
[357597301,1744224640452,-151.0,0.0002383,7]
[357597302,1744224640462,-151.0,0.0002383,7]
[357597303,1744224640472,-766.12,0.00023836,2]
[357597304,1744224640481,-151.0,0.00023836,7]
[357597305,1744224640491,-862.28603014,0.00023921,2]
[357597306,1744224640501,-151.35,0.0002399,2]
[357597307,1744224640510,-4639.04478276,0.00024,2]
[357597308,1744224640519,-224.74205,0.00024,7]
[357597309,1744224640528,-151.0,0.00024,7]
[357597310,1744224640537,-151.0,0.00024,7]
[357597311,1744224640547,-151.0,0.00024,7]
[357597312,1744224640556,-151.0,0.00024,7]
[357597313,1744224640565,-318.909339,0.00024,7]
[357597314,1744224640574,-318.909339,0.00024,7]
[357597315,1744224640583,-5949.479192,0.00024,7]
[357597316,1744224640592,-5949.479192,0.00024,7]
[357597317,1744224640601,-151.0,0.00024,7]
[357597318,1744224640611,-166.781901,0.00024,7]
[357597319,1744224640620,-166.781901,0.00024,7]
[357597320,1744224640629,-151.0,0.00024,7]
[357597321,1744224640638,-369.31631,0.00024,7]
[357597323,1744224640647,-369.31631,0.00024,7]
[357597325,1744224640656,-262.254419,0.00024,7]
[357597327,1744224640665,-151.0,0.00024,7]
[357597329,1744224640675,-153.556503,0.00024,7]
[357597331,1744224640684,-151.0,0.00024,7]
[357597332,1744224640694,-151.0,0.00024,7]
[357597334,1744224640706,-151.0,0.00024,7]
[357597336,1744224640716,-1000.0,0.0002408,5]
[357597338,1744224640726,-1336.0,0.000244,2]
[357597340,1744224640735,-174.61919141,0.00024465,2]
[357597342,1744224640744,-231.28369723,0.00024465,2]
[357597344,1744224640754,-894.19061326,0.00024469,2]
[357597346,1744224640765,-223.38,0.00024626,2]
[357597347,1744224640774,-411.92,0.00024657,2]
[357597349,1744224640783,-256.73,0.00024658,4]
[357597351,1744224640793,-1000.0,0.00024658,2]
[357597352,1744224640803,-500.0,0.00024773,2]
[357597354,1744224640812,-500.0,0.00024773,2]
[357597356,1744224640822,-500.0,0.00024773,2]
[357597358,1744224640832,-151.35,0.0002479,2]
[357597360,1744224640841,-151.35,0.0002479,2]
[357597362,1744224640850,-151.35,0.0002479,2]
[357597363,1744224640860,-151.0,0.000248,7]
[357597365,1744224640869,-151.0,0.000248,7]
[357597367,1744224640879,-151.0,0.000248,7]
[357597369,1744224640888,-151.0,0.000248,7]
[357597371,1744224640898,-151.0,0.000248,7]
[357597373,1744224640908,-151.0,0.000248,7]
[357597375,1744224640917,-151.0,0.000248,7]
[357597377,1744224640927,-151.0,0.000248,7]
[357597379,1744224640936,-151.0,0.000248,7]
[357597381,1744224640945,-151.0,0.000248,7]
[357597383,1744224640959,-151.0,0.000248,7]
[357597385,1744224640969,-151.0,0.000248,7]
[357597387,1744224640978,-317.643798,0.000248,7]
[357597389,1744224640987,-154.45228,0.000248,7]
[357597390,1744224640996,-317.643798,0.000248,7]
[357597392,1744224641006,-151.0,0.000248,7]
[357597394,1744224641015,-151.0,0.000248,7]
[357597396,1744224641025,-151.0,0.000248,7]
[357597398,1744224641035,-151.0,0.000248,7]
[357597400,1744224641045,-151.0,0.000248,7]
[357597402,1744224641054,-151.0,0.000248,7]
[357597404,1744224641064,-337.203198,0.000248,7]
[357597406,1744224641073,-151.0,0.000248,7]
[357597408,1744224641082,-151.0,0.000248,7]
[357597409,1744224641092,-151.0,0.000248,7]
[357597411,1744224641101,-1714.6741,0.000248,7]
[357597413,1744224641110,-1714.6741,0.000248,7]
[357597415,1744224641119,-151.0,0.000248,7]
[357597417,1744224641129,-151.0,0.000248,7]
[357597419,1744224641138,-151.0,0.000248,7]
[357597421,1744224641147,-151.0,0.000248,7]
[357597423,1744224641156,-151.0,0.000248,7]
[357597425,1744224641165,-151.0,0.000248,7]
[357597426,1744224641175,-151.0,0.000248,7]
[357597428,1744224641184,-232.916259,0.000248,7]
[357597430,1744224641194,-232.916259,0.000248,7]
[357597432,1744224641207,-151.0,0.000248,7]
[357597434,1744224641216,-213.454841,0.000248,7]
[357597436,1744224641225,-151.0,0.000248,7]
[357597438,1744224641235,-151.0,0.000248,7]
[357597440,1744224641244,-151.0,0.000248,7]
[357597442,1744224641253,-151.0,0.000248,7]
[357597444,1744224641262,-151.434378,0.000248,7]
[357597445,1744224641272,-209.430364,0.000248,7]
[357597447,1744224641281,-209.430364,0.000248,7]
[357597449,1744224641291,-378.53578,0.000248,7]
[357597451,1744224641300,-151.0,0.000248,7]
[357597453,1744224641310,-151.0,0.000248,7]
[357597455,1744224641319,-378.53578,0.000248,7]
[357597457,1744224641328,-151.0,0.000248,7]
[357597459,1744224641337,-151.0,0.000248,7]
[357597461,1744224641347,-1229.498175,0.000248,7]
[357597463,1744224641356,-1229.498175,0.000248,7]
[357597465,1744224641366,-1229.498175,0.000248,7]
[357597467,1744224641375,-1229.498175,0.000248,7]
[357597468,1744224641385,-151.0,0.000248,7]
[357597470,1744224641394,-637.947231,0.000248,7]
[357597472,1744224641403,-637.947231,0.000248,7]
[357597474,1744224641413,-637.947231,0.000248,7]
[357597476,1744224641422,-637.947231,0.000248,7]
[357597478,1744224641431,-204.430681,0.000248,7]
[357597480,1744224641440,-204.430681,0.000248,7]
[357597482,1744224641449,-200.225021,0.000248,7]
[357597484,1744224641462,-200.225021,0.000248,7]
[357597486,1744224641471,-200.225021,0.000248,7]
[357597487,1744224641482,-200.225021,0.000248,7]
[357597489,1744224641491,-151.0,0.000248,7]
[357597491,1744224641500,-151.0,0.000248,7]
[357597493,1744224641509,-174.477373,0.000248,7]
[357597495,1744224641519,-174.477373,0.000248,7]
[357597497,1744224641528,-174.477373,0.000248,7]
[357597499,1744224641541,-174.477373,0.000248,7]
[357597501,1744224641551,-151.0,0.000248,7]
[357597503,1744224641560,-151.0,0.000248,7]
[357597505,1744224641569,-151.0,0.000248,7]
[357597507,1744224641579,-151.0,0.000248,7]
[357597509,1744224641588,-151.0,0.000248,7]
[357597511,1744224641598,-151.0,0.000248,7]
[357597513,1744224641607,-151.0,0.000248,7]
[357597515,1744224641616,-151.0,0.000248,7]
[357597517,1744224641626,-151.0,0.000248,7]
[357597519,1744224641635,-151.0,0.000248,7]
[357597521,1744224641644,-151.0,0.000248,7]
[357597523,1744224641653,-202.376714,0.000248,7]
[357597525,1744224641663,-151.0,0.000248,7]
[357597527,1744224641672,-151.0,0.000248,7]
[357597529,1744224641681,-912.748335,0.000248,7]
[357597531,1744224641691,-912.748335,0.000248,7]
[357597533,1744224641701,-151.0,0.000248,7]
[357597535,1744224641711,-318.909339,0.000248,7]
[357597537,1744224641720,-318.909339,0.000248,7]
[357597539,1744224641729,-5949.479192,0.000248,7]
[357597540,1744224641740,-162.319674,0.000248,7]
[357597542,1744224641753,-5949.479192,0.000248,7]
[357597544,1744224641762,-151.0,0.000248,7]
[357597546,1744224641772,-166.781901,0.000248,7]
[357597548,1744224641781,-166.781901,0.000248,7]
[357597550,1744224641791,-151.0,0.000248,7]
[357597552,1744224641800,-369.31631,0.000248,7]
[357597554,1744224641810,-151.0,0.000248,7]
[357597556,1744224641819,-369.31631,0.000248,7]
[357597558,1744224641828,-746.797042,0.000248,7]
[357597560,1744224641839,-746.797042,0.000248,7]
[357597562,1744224641850,-746.797042,0.000248,7]
[357597564,1744224641859,-746.797042,0.000248,7]
[357597566,1744224641868,-151.0,0.000248,7]
[357597568,1744224641878,-151.0,0.000248,7]
[357597570,1744224641888,-151.0,0.000248,7]
[357597572,1744224641897,-963.234939,0.000248,7]
[357597574,1744224641906,-963.234939,0.000248,7]
[357597576,1744224641915,-745.180852,0.000248,7]
[357597578,1744224641925,-745.180852,0.000248,7]
[357597580,1744224641934,-151.0,0.000248,7]
[357597582,1744224641944,-214.464694,0.000248,7]
[357597584,1744224641954,-214.464694,0.000248,7]
[357597586,1744224641964,-362981.140449,0.000248,3]
[357597587,1744224641973,-151.0,0.000248,7]
[357597588,1744224641983,-151.361839,0.000248,7]
[357597589,1744224641992,-151.0,0.000248,7]
[357597590,1744224642002,-151.361839,0.000248,7]
[357597591,1744224642011,-151.0,0.000248,7]
[357597592,1744224642021,-151.0,0.000248,7]
[357597593,1744224642031,-160.780589,0.000248,7]
[357597594,1744224642040,-151.0,0.000248,7]
[357597595,1744224642050,-154.654953,0.000249,7]
[357597596,1744224642059,-151.0,0.000249,7]
[357597597,1744224642072,-151.0,0.000249,7]
[357597598,1744224642082,-157.476275,0.000249,7]
[357597599,1744224642091,-151.0,0.000249,7]
[357597600,1744224642101,-151.0,0.000249,7]
[357597601,1744224642280,-151.0,0.000249,7]
[357597602,1744224642291,-151.0,0.000249,7]
[357597603,1744224642300,-151.0,0.000249,7]
[357597604,1744224642310,-151.0,0.000249,7]
[357597605,1744224642320,-151.0,0.000249,7]
[357597606,1744224642329,-317.643798,0.000249,7]
[357597607,1744224642339,-317.643798,0.000249,7]
[357597608,1744224642349,-337.203198,0.000249,7]
[357597609,1744224642359,-151.0,0.000249,7]
[357597610,1744224642368,-151.0,0.000249,7]
[357597611,1744224642378,-151.0,0.000249,7]
[357597612,1744224642392,-232.916259,0.000249,7]
[357597613,1744224642401,-232.916259,0.000249,7]
[357597614,1744224642411,-213.454841,0.000249,7]
[357597615,1744224642420,-637.947231,0.000249,7]
[357597616,1744224642430,-637.947231,0.000249,7]
[357597618,1744224642440,-151.0,0.000249,7]
[357597620,1744224642449,-174.477373,0.000249,7]
[357597622,1744224642460,-174.477373,0.000249,7]
[357597624,1744224642469,-164.326403,0.000249,7]
[357597626,1744224642479,-281.795777,0.000249,7]
[357597627,1744224642488,-151.0,0.000249,7]
[357597629,1744224642498,-202.376714,0.000249,7]
[357597631,1744224642507,-912.748335,0.000249,7]
[357597633,1744224642517,-912.748335,0.000249,7]
[357597635,1744224642526,-192.240046,0.000249,7]
[357597636,1744224642535,-151.0,0.000249,7]
[357597637,1744224642544,-963.234939,0.000249,7]
[357597638,1744224642553,-963.234939,0.000249,7]
[357597639,1744224642562,-7900.0,0.000249,9]
[357597640,1744224642571,-151.0,0.000249,7]
[357597641,1744224642580,-214.464694,0.000249,7]
[357597642,1744224642589,-214.464694,0.000249,7]
[357597643,1744224642599,-45061.3257573,0.000249,3]
[357597644,1744224642608,-151.0,0.000249,7]
[357597645,1744224642617,-151.361839,0.000249,7]
[357597646,1744224642626,-151.0,0.000249,7]
[357597647,1744224642635,-151.361839,0.000249,7]
[357597648,1744224642644,-151.0,0.000249,7]
[357597649,1744224642653,-151.0,0.000249,7]
[357597650,1744224642663,-1026.0,0.000249,2]
[357597651,1744224642672,-11860.15319382,0.00024937,2]
[357597652,1744224642682,-163.98159433,0.00025,2]
[357597653,1744224642705,-400.0,0.00025,2]
[357597654,1744224642715,-67037.48732584,0.0002501,2]
[357597656,1744224642726,-151.0,0.0002501,7]
[357597658,1744224642736,-151.0,0.0002501,7]
[357597660,1744224642746,-151.0,0.0002501,7]
[357597662,1744224642757,-151.0,0.0002501,7]
[357597664,1744224642768,-151.0,0.0002501,7]
[357597666,1744224642778,-1714.6741,0.0002501,7]
[357597668,1744224642788,-1714.6741,0.0002501,7]
[357597670,1744224642798,-151.0,0.0002501,7]
[357597672,1744224642809,-151.0,0.0002501,7]
[357597674,1744224642819,-151.0,0.0002501,7]
[357597676,1744224642830,-151.0,0.0002501,7]
[357597678,1744224642840,-151.0,0.0002501,7]
[357597679,1744224642850,-209.430364,0.0002501,7]
[357597681,1744224642860,-209.430364,0.0002501,7]
[357597683,1744224642870,-151.0,0.0002501,7]
[357597685,1744224642880,-151.0,0.0002501,7]
[357597687,1744224642890,-1229.498175,0.0002501,7]
[357597689,1744224642899,-1229.498175,0.0002501,7]
[357597691,1744224642909,-151.0,0.0002501,7]
[357597693,1744224642919,-204.430681,0.0002501,7]
[357597695,1744224642929,-204.430681,0.0002501,7]
[357597697,1744224642939,-200.225021,0.0002501,7]
[357597699,1744224642948,-200.225021,0.0002501,7]
[357597701,1744224642961,-151.0,0.0002501,7]
[357597703,1744224642971,-151.0,0.0002501,7]
[357597705,1744224642981,-151.0,0.0002501,7]
[357597707,1744224642991,-151.0,0.0002501,7]
[357597709,1744224643002,-151.0,0.0002501,7]
[357597711,1744224643012,-151.0,0.0002501,7]
[357597713,1744224643024,-151.0,0.0002501,7]
[357597715,1744224643035,-318.909339,0.0002501,7]
[357597717,1744224643045,-318.909339,0.0002501,7]
[357597719,1744224643055,-5949.479192,0.0002501,7]
[357597721,1744224643065,-5949.479192,0.0002501,7]
[357597723,1744224643075,-151.0,0.0002501,7]
[357597725,1744224643085,-166.781901,0.0002501,7]
[357597727,1744224643095,-166.781901,0.0002501,7]
[357597729,1744224643105,-151.0,0.0002501,7]
[357597731,1744224643115,-369.31631,0.0002501,7]
[357597733,1744224643124,-369.31631,0.0002501,7]
[357597735,1744224643134,-746.797042,0.0002501,7]
[357597737,1744224643144,-746.797042,0.0002501,7]
[357597739,1744224643154,-151.0,0.0002501,7]
[357597741,1744224643163,-745.180852,0.0002501,7]
[357597743,1744224643172,-362.65367034,0.0002501,7]
[357597868,1744224644775,-382.52718166,0.0002501,7]
[357597869,1744224644785,-151.0,0.0002501,7]
[357597870,1744224644795,-927.27566595,0.00025017,2]
[357597871,1744224644805,-378.53578,0.00025224,7]
[357597872,1744224644814,-378.53578,0.00025224,7]
[357597873,1744224644823,-275.59456,0.00025224,7]
[357597874,1744224644833,-151.0,0.00025224,7]
[357597875,1744224644842,-151.0,0.00025224,7]
[357597876,1744224644851,-202.376714,0.00025233,7]
[357597877,1744224644861,-912.748335,0.00025233,7]
[357597878,1744224644870,-912.748335,0.00025233,7]
[357597879,1744224644880,-280.0,0.000253,10]
[357597880,1744224644890,-1000.0,0.00025448,2]
[357597881,1744224644900,-500.0,0.00025452,2]
[357597882,1744224644909,-979.98013403,0.00025452,2]
[357597883,1744224644919,-961.58486559,0.00025565,2]
[357597884,1744224644928,-151.0,0.00025572,7]
[357597885,1744224644938,-564.01616905,0.0002564,7]
[357597886,1744224644947,-592.15740116,0.00025643,2]
[357597887,1744224644956,-223.38,0.00025652,2]
[357597888,1744224644966,-151.0,0.00025679,7]
[357597889,1744224644975,-151.0,0.00025679,7]
[357597890,1744224644985,-151.0,0.00025679,7]
[357597891,1744224644994,-151.0,0.00025679,7]
[357597892,1744224645003,-151.0,0.00025679,7]
[357597893,1744224645013,-151.0,0.00025679,7]
[357597894,1744224645023,-151.0,0.00025679,7]
[357597895,1744224645032,-151.0,0.00025679,7]
[357597896,1744224645041,-151.0,0.00025679,7]
[357597897,1744224645051,-181.08010149,0.00025834,2]
[357597898,1744224645060,-239.84119403,0.00025834,2]
[357597899,1744224645070,-151.0,0.00025858,7]
[357597901,1744224645079,-963.234939,0.00025858,7]
[357597903,1744224645089,-963.234939,0.00025858,7]
[357597905,1744224645098,-214.464694,0.00025858,7]
[357597907,1744224645107,-214.464694,0.00025858,7]
[357597909,1744224645117,-151.361839,0.00025858,7]
[357597911,1744224645126,-151.0,0.00025858,7]
[357597913,1744224645135,-151.361839,0.00025858,7]
[357597915,1744224645144,-2666.28,0.00025858,2]
[357597917,1744224645153,-151.0,0.000259,7]
[357597919,1744224645163,-151.0,0.000259,7]
[357597921,1744224645174,-637.947231,0.000259,7]
[357597923,1744224645184,-637.947231,0.000259,7]
[357597925,1744224645194,-1000.0,0.000259,2]
[357597927,1744224645203,-1029.0,0.00026,2]
[357597929,1744224645214,-4433.65,0.00026,2]
[357597930,1744224645223,-151.0,0.00026,7]
[357597932,1744224645233,-174.477373,0.00026,7]
[357597933,1744224645243,-174.477373,0.00026,7]
[357597934,1744224645252,-151.0,0.00026,7]
[357597935,1744224645262,-151.0,0.00026,7]
[357597936,1744224645271,-411.92,0.00026027,2]
[357597937,1744224645281,-1500.0,0.00026113,2]
[357597938,1744224645291,-1000.0,0.000264,2]
[357597939,1744224645300,-1000.0,0.00026452,2]
[357597940,1744224645309,-1000.0,0.00026452,2]
[357597941,1744224645319,-1000.0,0.00026452,2]
[357597942,1744224645328,-203.94841364,0.00026463,2]
[357597943,1744224645338,-11860.15319382,0.00026616,2]
[357597944,1744224645347,-223.38,0.00026678,2]
[357597945,1744224645356,-579.0,0.000268,3]
[357597946,1744224645366,-298.21,0.00026849,2]
[357597947,1744224645375,-159.57,0.00026849,2]
[357597948,1744224645384,-422.81,0.00026849,2]
[357597949,1744224645393,-151.0,0.00026875,7]
[357597950,1744224645402,-151.0,0.00026875,7]
[357597951,1744224645411,-223.34544,0.00026875,7]
[357597952,1744224645420,-232.916259,0.00026875,7]
[357597953,1744224645429,-232.916259,0.00026875,7]
[357597954,1744224645439,-2044.0,0.00026875,2]
[357597955,1744224645448,-599.401,0.00026875,2]
[357597956,1744224645459,-1286.0,0.00026875,2]
[357597957,1744224645468,-1326.0,0.00026875,2]
[357597958,1744224645478,-1278.0,0.00026875,2]
[357597959,1744224645487,-907.0,0.00026875,2]
[357597960,1744224645497,-791.0,0.00026875,2]
[357597961,1744224645507,-1436.0,0.00026875,2]
[357597962,1744224645517,-550.709,0.00026875,2]
[357597963,1744224645526,-4143.0,0.00026875,2]
[357597964,1744224645536,-167.498,0.00026875,2]
[357597965,1744224645545,-4018.239,0.00026875,2]
[357597966,1744224645554,-904.153,0.00026875,2]
[357597967,1744224645564,-150.0,0.00026875,2]
[357597968,1744224645573,-1120.0,0.00026875,2]
[357597969,1744224645582,-250.0,0.00027,2]
[357597970,1744224645591,-1405.79374103,0.00027,14]
[357597971,1744224645600,-450.0,0.00027,2]
[357597972,1744224645609,-151.0,0.00027011,7]
[357597973,1744224645620,-204.430681,0.00027011,7]
[357597974,1744224645629,-204.430681,0.00027011,7]
[357597975,1744224645639,-151.0,0.00027011,7]
[357597976,1744224645648,-151.0,0.00027011,7]
[357597977,1744224645657,-151.0,0.00027011,7]
[357597978,1744224645667,-200.0,0.000271,2]
[357597979,1744224645676,-151.0,0.00027112,7]
[357597980,1744224645685,-337.203198,0.00027112,7]
[357597981,1744224645694,-213.454841,0.00027112,7]
[357597982,1744224645703,-202.376714,0.00027112,7]
[357597983,1744224645715,-912.748335,0.00027112,7]
[357597984,1744224645724,-912.748335,0.00027112,7]
[357597985,1744224645733,-745.180852,0.00027112,7]
[357597986,1744224645742,-745.180852,0.00027112,7]
[357597987,1744224645752,-253.735767,0.00027112,7]
[357597988,1744224645765,-5558.0,0.000272,5]
[357597989,1744224645777,-187.78006525,0.00027203,2]
[357597990,1744224645787,-248.71531821,0.00027203,2]
[357597991,1744224645798,-151.0,0.00027304,7]